[Event "GER-ch Youth U14w 2019"]
[Site "Willingen"]
[Date "2019.06.10"]
[Round "3.8"]
[White "Werner, Rosalie"]
[Black "Buchholz, Maja"]
[Result "0-1"]
[ECO "B73"]
[WhiteElo "1610"]
[BlackElo "1657"]
[Annotator "NA"]
[PlyCount "73"]
[EventDate "2019.06.07"]
[EventType "swiss"]
[EventRounds "9"]
[EventCountry "GER"]
[SourceTitle "playchess.com"]
[Source "ChessBase"]
[SourceQuality "1"]
[TimeControl "40/5400+30:1800+30"]

1. e4 {[%emt 0:00:00]} c5 {[%emt 0:00:00]} 2. Nf3 {[%emt 0:00:00]} d6 {[%emt 0:00:00]} 3. d4 {[%emt 0:00:00]} cxd4 {[%emt 0:00:00]} 4. Nxd4 {[%emt 0:00:00]} Nf6 {[%emt 0:00:00]} 5. Nc3 {[%emt 0:01:05]} g6 {[%emt 0:00:00]} 6. Be2 {[%emt 0:00:04]} Bg7 {[%emt 0:00:00]} 7. Be3 {[%emt 0:00:22]} Nc6 {[%emt 0:00:08]} 8. O-O {[%emt 0:01:40]} O-O {[%emt 0:00:18]} 9. Kh1 {[%emt 0:06:49]} a6 {[%emt 0:02:14]} 10. f4 {[%emt 0:01:03]} Qc7 {[%emt 0:03:00]} 11. Nb3 {[%emt 0:07:34]} b5 {[%emt 0:00:40]} 12. a3 {[%emt 0:01:46]} Bb7 {[%emt 0:01:51]} 13. Qe1 {[%emt 0:04:17]} Na5 {[%emt 0:02:37]} 14. Nxa5 {[%emt 0:10:18]} Qxa5 {[%emt 0:00:31]} 15. Bf3 {[%emt 0:02:54]} Qc7 {[%emt 0:01:04]} 16. Bd2 {[%emt 0:05:38]} Nd7 {[%emt 0:04:59]} 17. Qg3 {[%emt 0:03:21]} Nb6 {[%emt 0:02:45]} 18. Rfb1 {[%emt 0:17:03]} Nc4 {[%emt 0:02:03]} 19. Qe1 {[%emt 0:03:23]} Rab8 {[%emt 0:04:11]} 20. Ra2 {[%emt 0:08:06]} Rfe8 {[%emt 0:03:49]} 21. Ne2 {[%emt 0:05:20]} Nxd2 {[%emt 0:02:12]} 22. Qxd2 {[%emt 0:00:52]} Qc4 {[%emt 0:02:06]} 23. b3 {[%emt 0:01:11]} Qc5 {[%emt 0:01:21]} 24. Ng3 {[%emt 0:02:48]} Bc3 {[%emt 0:04:20]} 25. Qe2 {[%emt 0:00:47]} Bc8 {[%emt 0:09:14]} 26. Rd1 {[%emt 0:03:21]} Be6 {[%emt 0:04:46]} 27. Rd3 {[%emt 0:01:43]} Rbc8 {[%emt 0:02:01]} 28. Qe3 {[%emt 0:00:21]} a5 {[%emt 0:04:16]} 29. f5 {[%emt 0:00:32]} Bd7 {[%emt 0:00:58]} 30. Ne2 {[%emt 0:01:34]} Qxe3 {[%emt 0:01:44]} 31. Rxe3 {[%emt 0:00:04]} Be5 {[%emt 0:00:25]} 32. g4 {[%emt 0:00:54]} Rc7 {[%emt 0:01:24]} 33. c3 {[%emt 0:01:07]} Rec8 {[%emt 0:01:23]} 34. Rc2 {[%emt 0:00:33]} Be8 {[%emt 0:02:30]} 35. h4 {[%emt 0:01:35]} h6 {[%emt 0:03:59]} 36. g5 {[%emt 0:01:47]} hxg5 {[%emt 0:04:07]} 37. hxg5 {[%emt 0:00:09] normal} 0-1

[Event "GER-ch Youth U14w 2019"]
[Site "Willingen"]
[Date "2019.06.10"]
[Round "3.9"]
[White "Petersen, Sophie"]
[Black "Butenandt, Svenja"]
[Result "0-1"]
[ECO "B83"]
[WhiteElo "1430"]
[BlackElo "1722"]
[Annotator "NA"]
[PlyCount "62"]
[EventDate "2019.06.07"]
[EventType "swiss"]
[EventRounds "9"]
[EventCountry "GER"]
[SourceTitle "playchess.com"]
[Source "ChessBase"]
[SourceQuality "1"]
[TimeControl "40/5400+30:1800+30"]

1. e4 {[%emt 0:00:00]} c5 {[%emt 0:00:00]} 2. Nf3 {[%emt 0:00:00]} e6 {[%emt 0:00:00]} 3. d4 {[%emt 0:00:00]} cxd4 {[%emt 0:00:00]} 4. Nxd4 {[%emt 0:00:00]} Nf6 {[%emt 0:00:00]} 5. Nc3 {[%emt 0:00:24]} d6 {[%emt 0:00:00]} 6. Be2 {[%emt 0:00:16]} Be7 {[%emt 0:00:14]} 7. O-O {[%emt 0:00:15]} a6 {[%emt 0:00:44]} 8. a4 {[%emt 0:00:29]} O-O {[%emt 0:00:39]} 9. Be3 {[%emt 0:01:29]} Qc7 {[%emt 0:00:46]} 10. f4 {[%emt 0:00:38]} b6 {[%emt 0:01:11]} 11. Bf3 {[%emt 0:00:53]} Bb7 {[%emt 0:00:30]} 12. Kh1 {[%emt 0:01:09]} Nbd7 {[%emt 0:00:53]} 13. Qe1 {[%emt 0:01:55]} Nc5 {[%emt 0:03:12]} 14. Bg1 {[%emt 0:00:37]} Rfe8 {[%emt 0:04:19]} 15. e5 {[%emt 0:06:31]} dxe5 {[%emt 0:17:35]} 16. fxe5 {[%emt 0:02:16]} Nfd7 {[%emt 0:02:33]} 17. Bxb7 {[%emt 0:01:04]} Nxb7 {[%emt 0:00:14]} 18. Nf3 {[%emt 0:00:31]} Nd8 {[%emt 0:02:21]} 19. Qe3 {[%emt 0:04:20]} Nc6 {[%emt 0:01:22]} 20. Rae1 {[%emt 0:02:27]} h6 {[%emt 0:08:37]} 21. h3 {[%emt 0:02:18]} Bb4 {[%emt 0:04:11]} 22. Bh2 {[%emt 0:03:12]} Ne7 {[%emt 0:04:28]} 23. Rd1 {[%emt 0:09:26]} Bxc3 {[%emt 0:03:36]} 24. bxc3 {[%emt 0:01:29]} Nd5 {[%emt 0:02:32]} 25. Qd3 {[%emt 0:06:27]} Nc5 {[%emt 0:01:19]} 26. Qd4 {[%emt 0:02:01]} Rac8 {[%emt 0:07:34]} 27. Rd2 {[%emt 0:15:59]} Nb7 {[%emt 0:07:51]} 28. Bg1 {[%emt 0:12:01]} Qxc3 {[%emt 0:02:24]} 29. Qxc3 {[%emt 0:04:32]} Rxc3 {[%emt 0:01:05]} 30. Rb1 {[%emt 0:02:20]} Nc5 {[%emt 0:02:16]} 31. Ra1 {[%emt 0:04:01]} Rc4 {[%emt 0:04:51] normal} 0-1

[Event "GER-ch Youth U14w 2019"]
[Site "Willingen"]
[Date "2019.06.10"]
[Round "3.10"]
[White "Becker, Linda"]
[Black "Albayrak, Nese Pinar"]
[Result "1/2-1/2"]
[ECO "C45"]
[WhiteElo "1683"]
[BlackElo "1530"]
[Annotator "NA"]
[PlyCount "37"]
[EventDate "2019.06.07"]
[EventType "swiss"]
[EventRounds "9"]
[EventCountry "GER"]
[SourceTitle "playchess.com"]
[Source "ChessBase"]
[SourceQuality "1"]
[TimeControl "40/5400+30:1800+30"]

1. e4 {[%emt 0:00:00]} e5 {[%emt 0:00:00]} 2. Nf3 {[%emt 0:00:00]} Nc6 {[%emt 0:00:00]} 3. d4 {[%emt 0:00:00]} exd4 {[%emt 0:00:00]} 4. Nxd4 {[%emt 0:00:00]} Bc5 {[%emt 0:00:03]} 5. Be3 {[%emt 0:00:00]} Qf6 {[%emt 0:00:32]} 6. c3 {[%emt 0:00:03]} Nge7 {[%emt 0:00:23]} 7. Bc4 {[%emt 0:00:21]} O-O {[%emt 0:00:44]} 8. O-O {[%emt 0:00:44]} b6 {[%emt 0:01:45]} 9. Kh1 {[%emt 0:02:42]} Bb7 {[%emt 0:01:52]} 10. f4 {[%emt 0:02:05]} d5 {[%emt 0:04:52]} 11. e5 {[%emt 0:03:13]} Qh6 {[%emt 0:04:48]} 12. Bd3 {[%emt 0:05:35]} Nxe5 {[%emt 0:23:27]} 13. fxe5 {[%emt 0:04:21]} Qxe3 {[%emt 0:00:11]} 14. Rf3 {[%emt 0:09:37]} Qxe5 {[%emt 0:06:41]} 15. Rh3 {[%emt 0:00:43]} Ng6 {[%emt 0:04:43]} 16. Nd2 {[%emt 0:05:30]} Bxd4 {[%emt 0:19:07]} 17. Nf3 {[%emt 0:01:25]} Qf6 {[%emt 0:03:27]} 18. Nxd4 {[%emt 0:00:34]} c5 {[%emt 0:02:30]} 19. Nf5 {[%emt 0:11:16] normal} 1/2-1/2

[Event "GER-ch Youth U14w 2019"]
[Site "Willingen"]
[Date "2019.06.10"]
[Round "3.11"]
[White "Kalina, Lena"]
[Black "Avetyan, Manan"]
[Result "1-0"]
[ECO "D36"]
[WhiteElo "1687"]
[BlackElo "1307"]
[Annotator "NA"]
[PlyCount "55"]
[EventDate "2019.06.07"]
[EventType "swiss"]
[EventRounds "9"]
[EventCountry "GER"]
[SourceTitle "playchess.com"]
[Source "ChessBase"]
[SourceQuality "1"]
[TimeControl "40/5400+30:1800+30"]

1. d4 {[%emt 0:00:00]} d5 {[%emt 0:00:00]} 2. c4 {[%emt 0:00:00]} e6 {[%emt 0:00:00]} 3. Nc3 {[%emt 0:00:04]} Nf6 {[%emt 0:00:00]} 4. cxd5 {[%emt 0:00:06]} exd5 {[%emt 0:00:06]} 5. Bg5 {[%emt 0:00:09]} c6 {[%emt 0:00:09]} 6. Qc2 {[%emt 0:02:37]} Be7 {[%emt 0:00:46]} 7. e3 {[%emt 0:00:27]} Nbd7 {[%emt 0:00:46]} 8. Bd3 {[%emt 0:00:35]} h6 {[%emt 0:00:22]} 9. Bf4 {[%emt 0:01:55]} Nh5 {[%emt 0:09:06]} 10. Nge2 {[%emt 0:03:04]} Nb6 {[%emt 0:08:30]} 11. h3 {[%emt 0:10:05]} Bd6 {[%emt 0:13:00]} 12. Be5 {[%emt 0:07:17]} c5 {[%emt 0:18:24]} 13. Bb5+ {[%emt 0:04:37]} Kf8 {[%emt 0:01:57]} 14. Bxd6+ {[%emt 0:01:05]} Qxd6 {[%emt 0:00:31]} 15. dxc5 {[%emt 0:01:41]} Qxc5 {[%emt 0:00:52]} 16. O-O {[%emt 0:02:11]} a6 {[%emt 0:04:34]} 17. Bd3 {[%emt 0:01:26]} Be6 {[%emt 0:00:41]} 18. Nd4 {[%emt 0:03:02]} Re8 {[%emt 0:01:57]} 19. Rac1 {[%emt 0:02:42]} g6 {[%emt 0:07:46]} 20. Qe2 {[%emt 0:06:30]} Qd6 {[%emt 0:01:25]} 21. Rfd1 {[%emt 0:04:43]} Kg7 {[%emt 0:04:02]} 22. Bc2 {[%emt 0:06:06]} Rhf8 {[%emt 0:04:26]} 23. Bb3 {[%emt 0:03:54]} Nf6 {[%emt 0:01:12]} 24. a4 {[%emt 0:05:42]} Kh8 {[%emt 0:03:07]} 25. Qf3 {[%emt 0:03:00]} Qe5 {[%emt 0:03:35]} 26. a5 {[%emt 0:06:26]} Nc4 {[%emt 0:00:45]} 27. Bxc4 {[%emt 0:03:43]} dxc4 {[%emt 0:00:07]} 28. Qxb7 {[%emt 0:03:13] normal} 1-0

[Event "GER-ch Youth U14w 2019"]
[Site "Willingen"]
[Date "2019.06.10"]
[Round "3.12"]
[White "Gerber, Anna Sophie"]
[Black "Zixin, Li"]
[Result "1-0"]
[ECO "D31"]
[WhiteElo "1473"]
[BlackElo "1284"]
[Annotator "NA"]
[PlyCount "106"]
[EventDate "2019.06.07"]
[EventType "swiss"]
[EventRounds "9"]
[EventCountry "GER"]
[SourceTitle "playchess.com"]
[Source "ChessBase"]
[SourceQuality "1"]
[TimeControl "40/5400+30:1800+30"]

1. d4 {[%emt 0:00:00]} d5 {[%emt 0:00:00]} 2. c4 {[%emt 0:00:00]} e6 {[%emt 0:00:00]} 3. Nc3 {[%emt 0:00:00]} Be7 {[%emt 0:00:00]} 4. Bf4 {[%emt 0:00:12]} Nf6 {[%emt 0:00:55]} 5. e3 {[%emt 0:00:51]} c6 {[%emt 0:03:24]} 6. cxd5 {[%emt 0:00:24]} exd5 {[%emt 0:01:44]} 7. Bd3 {[%emt 0:00:40]} O-O {[%emt 0:00:13]} 8. Nge2 {[%emt 0:00:25]} Nbd7 {[%emt 0:01:57]} 9. O-O {[%emt 0:01:01]} Nh5 {[%emt 0:04:09]} 10. Bg3 {[%emt 0:04:22]} Nxg3 {[%emt 0:00:59]} 11. Nxg3 {[%emt 0:00:45]} Nf6 {[%emt 0:01:55]} 12. Rc1 {[%emt 0:05:06]} Ng4 {[%emt 0:03:22]} 13. Nf5 {[%emt 0:06:36]} Bxf5 {[%emt 0:03:26]} 14. Bxf5 {[%emt 0:00:19]} Nf6 {[%emt 0:00:23]} 15. Qb3 {[%emt 0:05:50]} b6 {[%emt 0:03:43]} 16. Na4 {[%emt 0:02:10]} Qc7 {[%emt 0:01:22]} 17. Rc2 {[%emt 0:04:13]} Ne4 {[%emt 0:01:27]} 18. Rfc1 {[%emt 0:04:22]} Bd6 {[%emt 0:06:12]} 19. g3 {[%emt 0:02:05]} c5 {[%emt 0:05:35]} 20. Qxd5 {[%emt 0:02:18]} Nxg3 {[%emt 0:06:38]} 21. hxg3 {[%emt 0:05:33]} Bxg3 {[%emt 0:00:17]} 22. dxc5 {[%emt 0:06:41]} Rfd8 {[%emt 0:01:32]} 23. Qg2 {[%emt 0:03:11]} Qe5 {[%emt 0:02:17]} 24. Be4 {[%emt 0:03:00]} Bh2+ {[%emt 0:01:20]} 25. Qxh2 {[%emt 0:02:39]} Qxe4 {[%emt 0:00:11]} 26. Nc3 {[%emt 0:00:59]} Qg6+ {[%emt 0:00:47]} 27. Qg2 {[%emt 0:00:46]} Qxg2+ {[%emt 0:01:04]} 28. Kxg2 {[%emt 0:00:03]} bxc5 {[%emt 0:00:07]} 29. Ne4 {[%emt 0:00:44]} Rab8 {[%emt 0:02:03]} 30. Nxc5 {[%emt 0:00:41]} h6 {[%emt 0:00:35]} 31. Na4 {[%emt 0:01:12]} Rd5 {[%emt 0:01:29]} 32. Rc8+ {[%emt 0:00:54]} Rxc8 {[%emt 0:00:09]} 33. Rxc8+ {[%emt 0:00:06]} Kh7 {[%emt 0:00:09]} 34. Rc7 {[%emt 0:00:40]} Ra5 {[%emt 0:00:11]} 35. Nc3 {[%emt 0:00:44]} Kg6 {[%emt 0:00:20]} 36. Rd7 {[%emt 0:01:49]} Kf6 {[%emt 0:01:27]} 37. Rd5 {[%emt 0:01:26]} Rxd5 {[%emt 0:00:39]} 38. Nxd5+ {[%emt 0:00:09]} Ke5 {[%emt 0:00:07]} 39. Nb4 {[%emt 0:00:24]} Kd6 {[%emt 0:01:18]} 40. Kf3 {[%emt 0:00:48]} h5 {[%emt 0:01:04]} 41. Nd3 {[%emt 0:30:33]} g6 {[%emt 0:30:29]} 42. e4 {[%emt 0:00:58]} Ke6 {[%emt 0:00:57]} 43. Kf4 {[%emt 0:03:14]} f6 {[%emt 0:01:05]} 44. Ke3 {[%emt 0:02:40]} g5 {[%emt 0:00:40]} 45. f3 {[%emt 0:00:40]} f5 {[%emt 0:01:15]} 46. exf5+ {[%emt 0:00:25]} Kxf5 {[%emt 0:00:09]} 47. b4 {[%emt 0:01:18]} g4 {[%emt 0:00:45]} 48. fxg4+ {[%emt 0:00:03]} hxg4 {[%emt 0:00:13]} 49. a4 {[%emt 0:00:52]} Ke6 {[%emt 0:02:19]} 50. Nf4+ {[%emt 0:03:40]} Kd6 {[%emt 0:01:49]} 51. Kd4 {[%emt 0:01:03]} Kc6 {[%emt 0:00:36]} 52. Kc4 {[%emt 0:01:46]} Kb6 {[%emt 0:00:22]} 53. a5+ {[%emt 0:04:01]} Kc7 {[%emt 0:05:40] normal} 1-0

[Event "GER-ch Youth U14w 2019"]
[Site "Willingen"]
[Date "2019.06.11"]
[Round "4.1"]
[White "Doll, Rebecca"]
[Black "Yue, Qizhou"]
[Result "1/2-1/2"]
[ECO "B22"]
[WhiteElo "1678"]
[BlackElo "1840"]
[Annotator "NA"]
[PlyCount "88"]
[EventDate "2019.06.07"]
[EventType "swiss"]
[EventRounds "9"]
[EventCountry "GER"]
[SourceTitle "playchess.com"]
[Source "ChessBase"]
[SourceQuality "1"]
[TimeControl "40/5400+30:1800+30"]

1. e4 {[%emt 0:00:00]} c5 {[%emt 0:00:00]} 2. c3 {[%emt 0:00:00]} d5 {[%emt 0:00:00]} 3. exd5 {[%emt 0:00:00]} Qxd5 {[%emt 0:00:00]} 4. d4 {[%emt 0:00:00]} e6 {[%emt 0:00:05]} 5. Nf3 {[%emt 0:00:34]} Nf6 {[%emt 0:00:15]} 6. Bd3 {[%emt 0:03:02]} Be7 {[%emt 0:02:35]} 7. O-O {[%emt 0:00:44]} O-O {[%emt 0:01:01]} 8. h3 {[%emt 0:07:04]} Nc6 {[%emt 0:01:13]} 9. Be3 Rd8 {[%emt 0:06:54]} 10. Qe2 {[%emt 0:12:50]} cxd4 {[%emt 0:10:37]} 11. cxd4 {[%emt 0:06:08]} b6 {[%emt 0:06:40]} 12. Nc3 {[%emt 0:02:31]} Qd7 {[%emt 0:02:37]} 13. Rad1 {[%emt 0:12:24]} Bb7 {[%emt 0:03:32]} 14. Bb1 {[%emt 0:04:41]} Nb4 {[%emt 0:09:42]} 15. Ne5 {[%emt 0:08:40]} Qe8 {[%emt 0:02:09]} 16. Qd2 {[%emt 0:01:48]} Rac8 {[%emt 0:04:56]} 17. Rfe1 {[%emt 0:10:29]} Nbd5 {[%emt 0:09:33]} 18. Rc1 {[%emt 0:05:21]} Bb4 {[%emt 0:03:45]} 19. Qd3 {[%emt 0:01:20]} Nxc3 {[%emt 0:03:40]} 20. bxc3 {[%emt 0:01:52]} Be4 {[%emt 0:00:27]} 21. Qd2 {[%emt 0:00:46]} Ba3 {[%emt 0:02:53]} 22. Rcd1 {[%emt 0:01:02]} Bxb1 {[%emt 0:06:54]} 23. Rxb1 {[%emt 0:00:14]} Bd6 {[%emt 0:02:09]} 24. Bg5 {[%emt 0:04:18]} Be7 {[%emt 0:03:59]} 25. Rb3 {[%emt 0:02:06]} Nd5 {[%emt 0:01:08]} 26. Bxe7 {[%emt 0:00:38]} Qxe7 {[%emt 0:00:56]} 27. c4 {[%emt 0:03:47]} Nf6 {[%emt 0:00:25]} 28. Rd3 {[%emt 0:06:33]} Nd7 {[%emt 0:03:18]} 29. Nxd7 {[%emt 0:00:56]} Qxd7 {[%emt 0:00:14]} 30. Rc1 {[%emt 0:00:38]} Rc6 {[%emt 0:00:49]} 31. Qb2 {[%emt 0:01:40]} Rd6 {[%emt 0:00:47]} 32. Rcd1 {[%emt 0:00:14]} Kf8 {[%emt 0:00:34]} 33. a3 {[%emt 0:00:55]} Rc8 {[%emt 0:00:51]} 34. Qb4 {[%emt 0:00:35]} Kg8 {[%emt 0:03:35]} 35. Kf1 {[%emt 0:00:25]} h6 {[%emt 0:01:32]} 36. Kg1 {[%emt 0:00:11]} Qc6 {[%emt 0:01:31]} 37. a4 {[%emt 0:02:10]} Rcd8 {[%emt 0:02:46]} 38. Qb3 {[%emt 0:00:52]} Qe4 {[%emt 0:03:32]} 39. Qc3 {[%emt 0:00:31]} Qc6 {[%emt 0:00:51]} 40. Qb4 {[%emt 0:00:11]} a5 {[%emt 0:00:35]} 41. Qb3 {[%emt 0:31:14]} Qd7 {[%emt 0:03:01]} 42. Qa2 {[%emt 0:00:00]} Qe7 {[%emt 0:06:02]} 43. Qb3 {[%emt 0:00:00]} Qh4 {[%emt 0:01:14] normal} 44. Qc3 {[%emt 0:00:00] normal} Qf6 {[%emt 0:02:09] normal} 1/2-1/2

[Event "GER-ch Youth U14w 2019"]
[Site "Willingen"]
[Date "2019.06.11"]
[Round "4.2"]
[White "Bashylina, Luisa"]
[Black "Heutling, Elina"]
[Result "1-0"]
[ECO "C44"]
[WhiteElo "1886"]
[BlackElo "1712"]
[Annotator "NA"]
[PlyCount "51"]
[EventDate "2019.06.07"]
[EventType "swiss"]
[EventRounds "9"]
[EventCountry "GER"]
[SourceTitle "playchess.com"]
[Source "ChessBase"]
[SourceQuality "1"]
[TimeControl "40/5400+30:1800+30"]

1. e4 {[%emt 0:00:00]} e5 {[%emt 0:00:00]} 2. Nf3 {[%emt 0:00:00]} Nc6 {[%emt 0:00:00]} 3. d4 {[%emt 0:00:00]} exd4 {[%emt 0:00:00]} 4. Nxd4 {[%emt 0:00:00]} Qf6 {[%emt 0:00:20]} 5. Be3 {[%emt 0:03:11]} Bc5 {[%emt 0:00:43]} 6. c3 {[%emt 0:00:06]} Nge7 {[%emt 0:00:26]} 7. Bc4 {[%emt 0:00:14]} O-O {[%emt 0:00:14]} 8. O-O {[%emt 0:00:10]} b6 {[%emt 0:00:17]} 9. f4 {[%emt 0:10:08]} d5 {[%emt 0:13:15]} 10. exd5 {[%emt 0:31:15]} Na5 {[%emt 0:06:07]} 11. b3 {[%emt 0:13:47]} Nxc4 {[%emt 0:13:16]} 12. bxc4 {[%emt 0:00:04]} c6 {[%emt 0:06:34]} 13. d6 {[%emt 0:08:03]} Bxd6 {[%emt 0:07:21]} 14. Nd2 {[%emt 0:01:12]} Qg6 {[%emt 0:03:44]} 15. Qf3 {[%emt 0:05:00]} Qd3 {[%emt 0:05:50]} 16. Ne4 {[%emt 0:05:26]} Bg4 {[%emt 0:10:32]} 17. Nf6+ {[%emt 0:02:47]} gxf6 {[%emt 0:00:06]} 18. Qxg4+ {[%emt 0:00:04]} Kh8 {[%emt 0:00:09]} 19. Rae1 {[%emt 0:02:03]} Qxc4 {[%emt 0:01:51]} 20. Qh4 {[%emt 0:01:43]} Nd5 {[%emt 0:01:58]} 21. Nf5 {[%emt 0:01:39]} Bc5 {[%emt 0:02:17]} 22. Rf3 {[%emt 0:01:45]} Bxe3+ {[%emt 0:02:21]} 23. Rexe3 {[%emt 0:01:20]} Qxa2 {[%emt 0:02:09]} 24. Re1 {[%emt 0:01:38]} Rg8 {[%emt 0:02:20]} 25. g4 {[%emt 0:01:12]} Rg6 {[%emt 0:04:40]} 26. Rh3 {[%emt 0:01:04] normal} 1-0

[Event "GER-ch Youth U14w 2019"]
[Site "Willingen"]
[Date "2019.06.11"]
[Round "4.3"]
[White "Butenandt, Svenja"]
[Black "Oswald, Hannah"]
[Result "1-0"]
[ECO "D20"]
[WhiteElo "1722"]
[BlackElo "1632"]
[Annotator "NA"]
[PlyCount "47"]
[EventDate "2019.06.07"]
[EventType "swiss"]
[EventRounds "9"]
[EventCountry "GER"]
[SourceTitle "playchess.com"]
[Source "ChessBase"]
[SourceQuality "1"]
[TimeControl "40/5400+30:1800+30"]

1. d4 {[%emt 0:00:00]} d5 {[%emt 0:00:00]} 2. c4 {[%emt 0:00:00]} dxc4 {[%emt 0:00:00]} 3. e4 {[%emt 0:00:00]} c5 {[%emt 0:00:00]} 4. d5 {[%emt 0:00:00]} Nf6 {[%emt 0:00:00]} 5. Nc3 {[%emt 0:00:27]} b5 {[%emt 0:00:17]} 6. Bf4 {[%emt 0:00:37]} Qa5 {[%emt 0:01:00]} 7. a4 {[%emt 0:00:34]} Nxe4 {[%emt 0:16:07]} 8. Nge2 {[%emt 0:00:21]} Nxc3 {[%emt 0:04:20]} 9. Nxc3 {[%emt 0:00:52]} g6 {[%emt 0:08:45]} 10. axb5 {[%emt 0:02:37]} Qb6 {[%emt 0:05:36]} 11. Be5 {[%emt 0:14:43]} f6 {[%emt 0:01:39]} 12. Bf4 {[%emt 0:01:54]} Nd7 {[%emt 0:04:29]} 13. Bxc4 {[%emt 0:04:26]} Bb7 {[%emt 0:04:08]} 14. O-O {[%emt 0:01:50]} Qd8 {[%emt 0:09:10]} 15. Re1 {[%emt 0:03:17]} Nb6 {[%emt 0:03:00]} 16. b3 {[%emt 0:04:33]} Bg7 {[%emt 0:02:51]} 17. Qe2 {[%emt 0:03:36]} Nxc4 {[%emt 0:14:59]} 18. bxc4 {[%emt 0:01:19]} O-O {[%emt 0:07:17]} 19. Qxe7 {[%emt 0:03:12]} Qc8 {[%emt 0:00:35]} 20. Ne4 {[%emt 0:22:47]} Rf7 {[%emt 0:11:58]} 21. Qxf7+ {[%emt 0:01:23]} Kxf7 {[%emt 0:00:11]} 22. Nd6+ {[%emt 0:00:05]} Kf8 {[%emt 0:00:15]} 23. Nxc8 {[%emt 0:00:04]} Bxc8 {[%emt 0:00:49] normal} 24. Bd6+ {[%emt 0:00:40] normal} 1-0

[Event "GER-ch Youth U14w 2019"]
[Site "Willingen"]
[Date "2019.06.11"]
[Round "4.4"]
[White "Adelhardt, Lisa"]
[Black "Reuter, Elisa"]
[Result "1/2-1/2"]
[ECO "B38"]
[WhiteElo "1293"]
[BlackElo "1923"]
[Annotator "NA"]
[PlyCount "65"]
[EventDate "2019.06.07"]
[EventType "swiss"]
[EventRounds "9"]
[EventCountry "GER"]
[SourceTitle "playchess.com"]
[Source "ChessBase"]
[SourceQuality "1"]
[TimeControl "40/5400+30:1800+30"]

1. e4 {[%emt 0:00:00]} c5 {[%emt 0:00:00]} 2. Nf3 {[%emt 0:00:04]} Nc6 {[%emt 0:00:00]} 3. d4 {[%emt 0:01:50]} cxd4 {[%emt 0:00:00]} 4. Nxd4 {[%emt 0:00:11]} g6 {[%emt 0:00:00]} 5. c4 {[%emt 0:00:42]} Bg7 {[%emt 0:00:00]} 6. Be3 {[%emt 0:00:37]} Nf6 {[%emt 0:00:00]} 7. Nc3 {[%emt 0:00:15]} O-O {[%emt 0:00:00]} 8. Be2 {[%emt 0:00:16]} d6 {[%emt 0:00:00]} 9. f3 {[%emt 0:01:00]} Bd7 {[%emt 0:00:03]} 10. O-O {[%emt 0:00:23]} Nxd4 {[%emt 0:00:03]} 11. Bxd4 {[%emt 0:00:09]} a5 {[%emt 0:00:03]} 12. b3 {[%emt 0:01:05]} Bc6 {[%emt 0:00:06]} 13. Qd2 {[%emt 0:01:09]} Nd7 {[%emt 0:00:04]} 14. Be3 {[%emt 0:00:35]} Nc5 {[%emt 0:00:05]} 15. Rab1 {[%emt 0:01:10]} Qb6 {[%emt 0:04:25]} 16. Rfc1 {[%emt 0:05:15]} Rfc8 {[%emt 0:00:22]} 17. Nd5 {[%emt 0:05:58]} Qd8 {[%emt 0:01:11]} 18. a3 {[%emt 0:02:15]} Bxd5 {[%emt 0:02:09]} 19. exd5 {[%emt 0:03:29]} h5 {[%emt 0:03:37]} 20. Bd3 {[%emt 0:12:27]} Kh7 {[%emt 0:02:34]} 21. Re1 {[%emt 0:05:26]} Bf6 {[%emt 0:08:57]} 22. Bc2 {[%emt 0:07:43]} Qh8 {[%emt 0:01:16]} 23. Bxc5 {[%emt 0:13:05]} Rxc5 {[%emt 0:08:13]} 24. Qf4 {[%emt 0:05:58]} Rc7 {[%emt 0:04:12]} 25. Kf1 {[%emt 0:08:47]} Kg8 {[%emt 0:01:21]} 26. Re2 {[%emt 0:04:40]} Rac8 {[%emt 0:04:20]} 27. a4 {[%emt 0:02:36]} Qg7 {[%emt 0:01:11]} 28. g3 {[%emt 0:03:16]} Be5 {[%emt 0:00:48]} 29. Qg5 {[%emt 0:00:58]} b6 {[%emt 0:01:07]} 30. Kg2 {[%emt 0:01:34]} Bf6 {[%emt 0:00:52]} 31. Qe3 {[%emt 0:02:26]} Bd4 {[%emt 0:00:21]} 32. Qf4 {[%emt 0:00:21]} Be5 {[%emt 0:00:24]} 33. Qg5 {[%emt 0:00:22] normal} 1/2-1/2